Cogmind - Beta 15 @@@ ROGUE MODE // 2025.06.08 @ 11:34:37 Player: Wyvric Result: Self-destructed Performance ------------- Evolutions (4) 2000 Regions Visited (6) 1200 Robots Destroyed (58) 290 Value Destroyed (1743) 1743 Prototype IDs (8) 160 Alien Tech Used (0) 0 Bonus (875) 875 TOTAL SCORE: 6268 Bonus ------- Follower Combat Kills 75 Registered with UFD 300 Met Optimus in HQ 500 Cogmind --------- Core Integrity 122/850 Matter 300/300 Energy 75/100 System Corruption 8% Temperature Cool (0) Movement Core (750) Ox14 Location -6/Factory Parts ------- > --- POWER (1) -------- (None) > --- PROPULSION (2) --- (None) > --- UTILITY (10) ----- High-capacity Storage Unit Improved Signal Interpreter Melee Analysis Suite System Shield > --- WEAPON (2) ------- Companion Sword > --- INVENTORY (20) --- Angular Momentum Engine Nuclear Pulse Thruster Nuclear Pulse Thruster Nuclear Pulse Thruster Matter Compressor (250) Deep Structural Scanner Advanced Sensor Array Experimental Sensor Array Seismic Detector EM Shield Scrapoid Pod Heavy Missile Launcher Plasma Cutter CPS Tube (2) CPS Tube (2) CPS Tube (2) Multitool DRS Beacon (Ready) Peak State ------------ > --- POWER ------------ Deuterium Engine > --- PROPULSION ------- Overtuned Scrapsphere Overtuned Scrapsphere > --- UTILITY ---------- Scrap Suit Improved Heat Sink High-capacity Storage Unit Trap Scanner Advanced Visual Processing Unit Improved Propulsion Shielding Hardened Medium Armor Plating Focal Shield Drone Bay > --- WEAPON ----------- Overtuned Coil Gun Companion Sword > --- INVENTORY -------- Micro Nuclear Core Armored Huge Wheel Scrap Suit Large Storage Unit Deep Structural Scanner Experimental Sensor Array Focal Shield Scrapoid Pod Overtuned Beamcaster Heavy Missile Launcher Plasma Cutter CPS Tube CPS Tube CPS Tube Multitool DRS Beacon [Rating: 63] Favorites ----------- Power Subdweller Power Source Engine Subdweller Power Source Power Core Light Nuclear Core Propulsion Light Treads Treads Light Treads Wheel Overtuned Scrapsphere Utility High-capacity Storage Unit Device Scrap Suit Storage High-capacity Storage Unit Processor Improved Signal Interpreter Hackware System Shield Protection Hardened Light Armor Plating Weapon Autogun Energy Gun Overtuned Beamcaster Energy Cannon Heavy Particle Cannon Ballistic Gun Autogun Impact Weapon Great Maul Slashing Weapon Companion Sword Build | -11 -10 -10 -10 -8 -8 -6 ------- Run | Yrd Mat Min Sub Rec Scr Fac Slots Evolved 8 | . . . . . . 8 Power . | . . . . . . . Propulsion . | . . . . . . . Utility 8 | . . . . . . 8 Weapon . | . . . . . . . Parts Attached 67 | 7 4 1 8 2 18 27 Power 5 | 1 . . 1 . 2 1 Engine 4 | 1 . . 1 . 1 1 Core 1 | . . . . . 1 . Reactor . | . . . . . . . Propulsion 11 | 2 . . 2 . 4 3 Treads 5 | 2 . . 2 . 1 . Leg . | . . . . . . . Wheel 6 | . . . . . 3 3 Hover . | . . . . . . . Flight . | . . . . . . . Utility 34 | 1 1 1 1 2 6 22 Device 14 | . . 1 . 1 2 10 Storage 6 | 1 1 . . 1 2 1 Processor 4 | . . . . . . 4 Hackware 5 | . . . . . . 5 Protection 5 | . . . 1 . 2 2 Artifact . | . . . . . . . Weapon 17 | 3 3 . 4 . 6 1 Energy Gun 5 | 2 1 . 1 . 1 . Energy Cannon 1 | . . . . . 1 . Ballistic Gun 9 | 1 2 . 3 . 3 . Ballistic Cannon . | . . . . . . . Launcher . | . . . . . . . Special Weapon . | . . . . . . . Impact Weapon 1 | . . . . . 1 . Slashing Weapon 1 | . . . . . . 1 Piercing Weapon . | . . . . . . . Special Melee Weapon . | . . . . . . . Unidentified Prototypes 1 | . . . . . . 1 Parts Lost 16 | . . . 1 . . 15 Power 2 | . . . . . . 2 Propulsion 4 | . . . 1 . . 3 Utility 10 | . . . . . . 10 Weapon . | . . . . . . . Highest Loss Streak 8 | . . . 1 . . 8 To Critical Strikes . | . . . . . . . Average Backups 14 | 2 6 12 14 14 15 16 Power . | . 1 1 1 1 . . Propulsion 2 | 1 2 3 3 3 3 . Utility 3 | . . 1 2 2 3 6 Weapon 4 | . 2 7 6 5 5 1 Tool/Special . | . . . . . . . Unused Backups 32 | . . . 4 . 11 17 Power 4 | . . . 1 . . 3 Propulsion 8 | . . . 1 . 4 3 Utility 8 | . . . . . 4 4 Weapon 6 | . . . 2 . 3 1 Tool/Special 6 | . . . . . . 6 Average Slot Usage (%) 86 | . 85 99 100 87 84 79 Engine 11 | . 14 13 14 14 11 5 Treads 19 | . 28 28 28 28 20 . Wheel 4 | . . . . . 5 12 Device 4 | . . 13 6 . 1 14 Storage 12 | . 14 14 14 14 13 6 Processor 1 | . . . . . . 7 Hackware 2 | . . . . . . 16 Protection 7 | . . . 7 14 10 7 Energy Gun 2 | . 11 . 4 . 2 . Energy Cannon 4 | . . . . . 8 . Ballistic Gun 10 | . 16 28 23 15 6 . Peak Build Rating 63 | 6 9 11 16 16 35 63 Average Rating 20 | 5 7 10 14 14 18 51 On Entrance 12 | . 6 9 11 16 13 35 Naked Turns . | . . . . . . . Heaviest Build 77 | 11 29 30 39 38 67 77 Greatest Support 43 | 40 40 40 40 40 43 24 Greatest Overweight (x) 8 | . . . . . 2 8 Average Overweight (x) 1 | . . . . . . 3 Largest Inventory Capacity 20 | 8 15 15 15 15 20 20 Average Capacity 16 | 7 10 15 15 15 18 20 Most Carried 20 | 4 12 14 15 15 20 20 Average Carried 15 | 3 6 12 14 14 17 19 Final Capacity 20 | 8 15 15 15 15 20 20 Final Carried 20 | 4 12 14 15 15 20 19 Class Distribution -------------------- 54% | Mutant 35% | Derelict-Mutant 9% | Hacker-Mutant Dominant Class ---------------- Mutant | -10/Materials Mutant | -10/Mines Mutant | -10/Subcaves Mutant | -8/Recycling Derelict-Mutant | -8/Scraptown Hacker-Mutant | -6/Factory Resources | -11 -10 -10 -10 -8 -8 -6 ----------- Run | Yrd Mat Min Sub Rec Scr Fac Matter Collected 1825 | 122 279 132 354 . 310 628 Remotely 120 | . . . . . 120 . Salvage Created 2497 | 86 544 183 410 . . 1274 Parts 126 | 7 26 10 25 . . 58 Haulers Intercepted 1 | . 1 . . . . . Recyclers Shooed 4 | . 1 . . . . 3 Parts Field Recycled . | . . . . . . . Retrieved Matter . | . . . . . . . Parts Self-Destructed 11 | . . . 11 . . . Prevented . | . . . . . . . Kills | -11 -10 -10 -10 -8 -8 -6 ------- Run | Yrd Mat Min Sub Rec Scr Fac Combat Hostiles Destroyed 41 | . 13 4 10 . . 14 Melee 14 | . . . . . . 14 Guns 27 | . 13 4 10 . . . Classes Destroyed 15 | 1 5 1 3 . . 5 Worker 3 | . . . . . . 3 Tunneler 5 | 4 . 1 . . . . Hauler 1 | . 1 . . . . . Recycler 4 | . 1 . . . . 3 Operator 1 | . . . . . . 1 Turret 2 | . . . 2 . . . Watcher 1 | . 1 . . . . . Swarmer 10 | . 6 . 4 . . . Grunt 18 | . 7 4 1 . . 6 Sentry 1 | . . . . . . 1 Hunter 4 | . . . . . . 4 Programmer 3 | . . . . . . 3 Artisan 1 | . . . 1 . . . Subdweller 5 | . . . 5 . . . Assembled 1 | . . 1 . . . . Best Kill Streak 5 | 2 5 2 4 . . 5 Combat Bots Only 4 | . 3 2 4 . . 3 Max Kills in Single Turn 2 | 1 2 2 1 . . 1 Gunslinging . | . . . . . . . Exploded . | . . . . . . . Melee 1 | . . . . . . 1 Uniques/NPCs Destroyed . | . . . . . . . Combat | -11 -10 -10 -10 -8 -8 -6 -------- Run | Yrd Mat Min Sub Rec Scr Fac Hostile Shots Fired 359 | . 49 13 69 . . 228 Missed 91 | . 10 5 31 . . 45 Hits 268 | . 39 8 38 . . 183 Projectile 268 | . 39 8 38 . . 183 Critical Strikes 4 | . 1 . 1 . . 2 Damage Taken 3980 | . 426 98 507 . . 2949 Core 958 | . 121 13 96 . . 728 Absorbed by Shields . | . . . . . . . Redirected to Shielding 96 | . . . . . . 96 Ignored by Resistances 35 | . . . 7 . . 28 Regen/Repaired (Parts) 10 | . . . . . . 10 Core Remaining (%) 54 | 100 . . . . 8 . Volleys Fired 125 | 16 49 8 50 . . 2 Largest 2 | 2 2 2 2 . . 1 Hottest 85 | 70 85 46 83 . . 32 Shots Fired 248 | 32 98 19 97 . . 2 Gun 248 | 32 98 19 97 . . 2 Cannon . | . . . . . . . Launcher . | . . . . . . . Special . | . . . . . . . Kinetic 169 | 16 49 19 83 . . 2 Thermal 79 | 16 49 . 14 . . . Explosive . | . . . . . . . Electromagnetic . | . . . . . . . Robot Hit Streak 24 | 7 12 5 24 . . . Robot Miss Streak 4 | 3 3 3 4 . . 2 Penetration Max . | . . . . . . . Secondary Targets 2 | . . 1 1 . . . Max Gunslinging Chain 1 | . . 1 1 . . . Shots Hit Robots 234 | 21 62 12 69 . . 70 Core Hits 98 | 7 31 11 22 . . 27 Critical Kills . | . . . . . . . Critical Parts Destroyed 1 | 1 . . . . . . Critical Strikes 6 | 2 4 . . . . . Burn 5 | 1 4 . . . . . Destroy 1 | 1 . . . . . . Melee Attacks 99 | . . . . . . 99 Impact . | . . . . . . . Slashing 99 | . . . . . . 99 Piercing . | . . . . . . . Sneak Attacks 10 | . . . . . . 10 Combat Hostiles . | . . . . . . . Follow-up Attacks 4 | . . . . . . 4 Damage Inflicted 5539 | 237 706 205 1103 . . 3288 Guns 2238 | 237 698 200 1103 . . . Cannons . | . . . . . . . Explosions . | . . . . . . . Melee 3288 | . . . . . . 3288 Ramming 13 | . 8 5 . . . . Kinetic 1456 | 99 275 200 882 . . . Thermal 782 | 138 423 . 221 . . . Explosive . | . . . . . . . Electromagnetic . | . . . . . . . Impact . | . . . . . . . Slashing 3288 | . . . . . . 3288 Piercing . | . . . . . . . Highest Corruption 8 | . 5 5 5 5 . 8 Average Corruption 5 | . 4 5 5 5 . 5 Corruption Purged . | . . . . . . . Corruption Blocked . | . . . . . . . Effects 81 | . 14 15 18 2 . 32 Message Errors 15 | . 3 1 4 . . 7 Matter Fused 18 | . 3 5 4 . . 6 Heat Flow Errors 12 | . 2 1 . 2 . 7 Energy Discharges 13 | . 3 1 4 . . 5 Parts Rejected 3 | . 1 1 . . . 1 Data Loss (minor) 12 | . 1 3 3 . . 5 Data Loss (major) 2 | . 1 . 1 . . . Misfires 4 | . . 3 1 . . . Alerts 1 | . . . . . . 1 Weapon Failures 1 | . . . 1 . . . Overload Shots . | . . . . . . . Overflow Damage 380 | . . . . . . 380 Projectiles . | . . . . . . . Explosions . | . . . . . . . Melee 380 | . . . . . . 380 Knockbacks . | . . . . . . . Impact . | . . . . . . . Kinetic . | . . . . . . . Secondary . | . . . . . . . Self-Inflicted Damage . | . . . . . . . Shots . | . . . . . . . Rammed 3 | . 2 1 . . . . Targets Rammed 3 | . 2 1 . . . . Kicked . | . . . . . . . Crushed . | . . . . . . . Highest Temperature 270 | 92 229 270 2 245 . 267 Average Temperature 73 | 42 66 105 2 109 . 118 Received Heat Transfer 771 | . 153 60 204 . . 354 Siege Activations . | . . . . . . . Martial Activations . | . . . . . . . Shielding Activations . | . . . . . . . Robots Disrupted . | . . . . . . . Combat Hostiles . | . . . . . . . Robots Corrupted . | . . . . . . . Combat Hostiles . | . . . . . . . Parts Fried . | . . . . . . . Impact Corruptions . | . . . . . . . Robots Melted . | . . . . . . . Combat Hostiles . | . . . . . . . Parts Melted 2 | . 1 . . . . 1 Heat Transferred 2199 | 481 1443 . 275 . . . Parts Sabotaged . | . . . . . . . Parts Stolen . | . . . . . . . Parts Stripped . | . . . . . . . Power Chain Reactions . | . . . . . . . Alert | -11 -10 -10 -10 -8 -8 -6 ------- Run | Yrd Mat Min Sub Rec Scr Fac Maximum Alert Level . | . . . . . . . Low Security (%) 100 | 100 100 100 . 100 . 100 Level 1 . | . . . . . . . Level 2 . | . . . . . . . Level 3 . | . . . . . . . Level 4 . | . . . . . . . Level 5 . | . . . . . . . High Security . | . . . . . . . Max Security . | . . . . . . . Peak Influence 193 | 5 120 56 . 72 . 193 Initial 72 | . . 8 . 72 . . Average 30 | . 55 9 . 56 . 26 Influence Increases 1285 | 20 371 158 210 . . 526 Destroy 0b10 Robot/C 800 | . 260 120 140 . . 280 Destroy 0b10 Robot/NC 75 | 20 15 5 . . . 35 Destroy Leader 174 | . 64 20 10 . . 80 Allied During Kill 13 | . . 13 . . . . Successful Hack 31 | . 17 . . . . 14 Disable Machine 45 | . . . . . . 45 Destroy Structure 12 | . . . . . . 12 Lose Combat Pursuer 135 | . 15 . 60 . . 60 Influence Decreases 1111 | 20 348 153 88 118 32 352 Entered New Map 141 | . . 15 16 78 32 . Time Decay 850 | 20 348 138 72 40 . 232 Lost Part 112 | . . . . . . 112 Purge Threat 8 | . . . . . . 8 Squads Dispatched 11 | . 3 . . . . 8 Investigation 5 | . 2 . . . . 3 Extermination 2 | . . . . . . 2 Reinforcement 4 | . 1 . . . . 3 Assault . | . . . . . . . Garrison . | . . . . . . . Intercept . | . . . . . . . Searches Triggered . | . . . . . . . Construction Impeded . | . . . . . . . Haulers Reinforced . | . . . . . . . Active Scanning Responses . | . . . . . . . Cargo Convoy Interrupts . | . . . . . . . Stealth | -11 -10 -10 -10 -8 -8 -6 --------- Run | Yrd Mat Min Sub Rec Scr Fac Distress Signals 4 | . 2 . . . . 2 Communications Jammed . | . . . . . . . Distress Signals . | . . . . . . . Times Spotted 68 | . 21 6 13 . . 28 Peak Tracking Total 7 | . 5 2 2 . . 7 Tactical Retreats 7 | . 1 . 3 . . 3 Traps | -11 -10 -10 -10 -8 -8 -6 ------- Run | Yrd Mat Min Sub Rec Scr Fac Traps Triggered 5 | . 5 . . . . . Indirectly . | . . . . . . . Trap Hack Attempts . | . . . . . . . Triggered . | . . . . . . . Disarmed . | . . . . . . . Reprogrammed . | . . . . . . . Reused . | . . . . . . . Traps Extracted . | . . . . . . . Installed . | . . . . . . . Triggered . | . . . . . . . Machines | -11 -10 -10 -10 -8 -8 -6 ---------- Run | Yrd Mat Min Sub Rec Scr Fac Machines Disabled 4 | . . . 1 . . 3 Max in Single Turn 1 | . . . 1 . . 1 Garrison Access 1 | . . . . . . 1 Machines Repaired . | . . . . . . . Machines Dismantled . | . . . . . . . Machines Sabotaged . | . . . . . . . Overloaded Fab Kills . | . . . . . . . Hacking | -11 -10 -10 -10 -8 -8 -6 --------- Run | Yrd Mat Min Sub Rec Scr Fac Machines Accessed 23 | . 7 . . . 5 11 Terminals 13 | . 7 . . . . 6 Fabricators 1 | . . . . . . 1 Repair Stations . | . . . . . . . Recycling Units 3 | . . . . . . 3 Scanalyzers . | . . . . . . . Garrison Access 1 | . . . . . . 1 Total Hacks 82 | . 17 . . . 36 29 Successful 56 | . 10 . . . 36 10 Failed 25 | . 6 . . . . 19 Catastrophic 8 | . 1 . . . . 7 Database Lockouts 1 | . 1 . . . . . Manual 38 | . 16 . . . . 22 Terminals 38 | . 17 . . . . 21 Fabricators 1 | . . . . . . 1 Repair Stations . | . . . . . . . Recycling Units 6 | . . . . . . 6 Scanalyzers . | . . . . . . . Garrison Access 1 | . . . . . . 1 Terminal Hacks 40 | . 2 . . . 36 2 Record 35 | . . . . . 35 . Robot Analysis 1 | . 1 . . . . . Open Door 1 | . . . . . 1 . Branch Access Points 1 | . . . . . . 1 Unreport Threat 1 | . . . . . . 1 Zone Layout 1 | . 1 . . . . . Fabricator Hacks 1 | . . . . . . 1 Build 1 | . . . . . . 1 Repair Station Hacks . | . . . . . . . Recycling Unit Hacks . | . . . . . . . Scanalyzer . | . . . . . . . Garrison Access Hacks 1 | . . . . . . 1 Seal Access 1 | . . . . . . 1 Unauthorized Hacks 14 | . 8 . . . . 6 Terminals 11 | . 8 . . . . 3 Track 1 | . . . . . . 1 Assimilate 2 | . . . . . . 2 Botnet 3 | . 3 . . . . . Skim 5 | . 5 . . . . . Fabricators . | . . . . . . . Repair Stations . | . . . . . . . Recycling Units 3 | . . . . . . 3 Fedlink 3 | . . . . . . 3 Scanalyzers . | . . . . . . . Garrison Access . | . . . . . . . Data Cores Recovered 1 | . . . . . . 1 Used . | . . . . . . . Hacking Detections 13 | . 6 . . . . 7 Full Trace Events . | . . . . . . . Feedback Events . | . . . . . . . Feedback Blocked . | . . . . . . . Robot Schematics Acquired . | . . . . . . . Robots Built . | . . . . . . . Authchips . | . . . . . . . Time . | . . . . . . . Total Robot Build Rating . | . . . . . . . Part Schematics Acquired . | . . . . . . . Parts Built 2 | . . . . . . 2 Authchips . | . . . . . . . Time 128 | . . . . . . 128 Total Part Build Rating 16 | . . . . . . 16 Parts Repaired . | . . . . . . . Time . | . . . . . . . Parts Recycled . | . . . . . . . Recycled Matter . | . . . . . . . Retrieved Matter . | . . . . . . . Retrieved Components . | . . . . . . . Parts Scanalyzed . | . . . . . . . Part Schematics Acquired . | . . . . . . . Parts Damaged . | . . . . . . . Bothacking | -11 -10 -10 -10 -8 -8 -6 ------------ Run | Yrd Mat Min Sub Rec Scr Fac Used RIF Installer . | . . . . . . . Robots Hacked . | . . . . . . . Non-combat . | . . . . . . . Combat . | . . . . . . . Robot Hacks Applied . | . . . . . . . Relay Couplers Released . | . . . . . . . Fabnet Peak Effective % . | . . . . . . . Robots Rewired . | . . . . . . . Allies Hacked . | . . . . . . . Hacks Repelled . | . . . . . . . Allies | -11 -10 -10 -10 -8 -8 -6 -------- Run | Yrd Mat Min Sub Rec Scr Fac Total Allies 3 | . . 3 . . . . Largest Group 3 | . . 3 1 . . . Highest-Rated Group 40 | . . 40 16 . . . Highest-Rated Ally 16 | . . 16 16 . . . Total Orders 1 | . . . . . . 1 RETURN 1 | . . . . . . 1 Ally Attacks 34 | . . 31 3 . . . Total Damage 353 | . . 321 32 . . . Kills 4 | . . 4 . . . . Allies Corrupted . | . . . . . . . Allies Melted . | . . . . . . . Intel | -11 -10 -10 -10 -8 -8 -6 ------- Run | Yrd Mat Min Sub Rec Scr Fac Active Infowar (turns) 2077 | . . 772 434 . 3 868 Optics 496 | . . . . . . 496 Sensors 303 | . . . . . . 303 Terrain 1206 | . . 772 434 . . . Structural 93 | . . . . . 3 90 Traps 167 | . . . . . . 167 Robot Analysis Total 1 | . 1 . . . . . Derelict Logs Recovered 8 | . . 3 2 . 3 . Drone Launches 1 | . . . . . . 1 Drone Recoveries 1 | . . . . . . 1 Exploration | -11 -10 -10 -10 -8 -8 -6 ------------- Run | Yrd Mat Min Sub Rec Scr Fac Turns Passed 9264 | 172 971 806 937 80 4947 1351 Spaces Moved 5153 | 73 486 351 476 45 2810 912 Core 312 | 3 . . . . 309 . Treads 3053 | 70 486 351 476 45 1625 . Legs . | . . . . . . . Wheels 1788 | . . . . . 876 912 Hover . | . . . . . . . Flight . | . . . . . . . Fastest Speed 50 | 50 160 160 160 160 50 97 Average Speed 153 | 155 160 160 160 160 165 107 Slowest Speed 250 | 160 160 160 160 160 250 150 Overloaded Moves . | . . . . . . . Propulsion Burnouts . | . . . . . . . Robots Hopped . | . . . . . . . Potential Cave-ins . | . . . . . . . Cave-ins Triggered 1 | . . . . . . 1 Exploration Rate (%) 45 | 4 72 68 42 13 95 25 Regions Visited 6 Branch Regions 4 Pre-discovered Areas 4 | . 1 1 1 . . 1 Known Exits Taken 3 | . 1 1 1 . . . Unknown Exits Taken 3 | 1 . . . 1 1 . Scrap Searched 19 | . . 1 6 . 12 . Spaces Dug 11 | . . . . . . 11 Terrain Destroyed 15 | . . . . . . 15 Melee 11 | . . . . . . 11 Projectile 4 | . . . . . . 4 AOE . | . . . . . . . Terrain Rammed . | . . . . . . . Walls Destroyed . | . . . . . . . Machines Disabled . | . . . . . . . Actions | -11 -10 -10 -10 -8 -8 -6 --------- Run | Yrd Mat Min Sub Rec Scr Fac Total 6150 | 99 590 578 571 55 3108 1149 Wait 525 | . 37 215 24 . 189 60 Move 5147 | 72 485 350 475 44 2809 912 Hop . | . . . . . . . Pick Up 88 | 4 8 2 6 2 49 17 Fast Attach 36 | 6 4 2 2 2 9 11 Attach 20 | . . . 1 . 4 15 Detach 8 | . . . . . . 8 Swap 29 | 1 1 . 5 1 7 14 Drop 74 | . 4 . 8 6 41 15 Fire 125 | 16 49 8 50 . . 2 Melee 95 | . . . . . . 95 Ram . | . . . . . . . Kick . | . . . . . . . Crush 3 | . 2 1 . . . . Escape Stasis . | . . . . . . . Rewire . | . . . . . . . Trap . | . . . . . . . Miscellaneous . | . . . . . . . Route ------- -11/Scrapyard -10/Materials (discovered 6 exits: *Mat x3 / *Min x2 / *Sub) -10/Mines (discovered 3 exits: *Mat / [*Exi] / *Sub) -10/Subcaves (discovered 3 exits: *Mat x2 / *Rec) -8/Recycling -8/Scraptown (discovered 2 exits: *Fac x2) -6/Factory (discovered 4 exits: *Low x2 / Ext x2) History --------- Turn | Location | Event 28 | -11/Scrapyard | Discovered new exit (range 16) 173 | -11/Scrapyard | Entered Materials 307 | -10/Materials | Build established: Mutant 370 | -10/Materials | Discovered new exit (range 8) 518 | -10/Materials | Discovered new exit (range 14) 622 | -10/Materials | Central database locked down 662 | -10/Materials | Discovered new exit (range 15) 664 | -10/Materials | Loaded intel: 16 trap records 723 | -10/Materials | Loaded intel: 28 non-interactive machine locations 739 | -10/Materials | Learned location of 2 exits from Mines 746 | -10/Materials | Identified exit to Mines 746 | -10/Materials | Identified exit to Materials 754 | -10/Materials | Learned 4 Recycling zone layouts 771 | -10/Materials | Learned location of Storage (-8) 1144 | -10/Materials | Entered Mines 1145 | -10/Mines | Identified exit to Subcaves 1159 | -10/Mines | Learned 8 Materials zone layouts 1294 | -10/Mines | Assisted by bots powering up and referring to "LRC-V3" 1426 | -10/Mines | Learned Materials emergency access door positions 1434 | -10/Mines | Deemed a non-threat by the Exiles lab entrance 1434 | -10/Mines | Discovered new exit (range 5) 1534 | -10/Mines | Excavation squad dispatched 1534 | -10/Mines | A large section of the Mines collapsed 1872 | -10/Mines | Core integrity fell below 50% 1950 | -10/Mines | Entered Subcaves 1950 | -10/Subcaves | Accompanied by 1 ally 1951 | -10/Subcaves | Identified exit to Recycling 2100 | -10/Subcaves | Learned location of Zion (-6) 2100 | -10/Subcaves | Met a Zionite searching for "candidates" 2179 | -10/Subcaves | Discovered new exit (range 8) 2206 | -10/Subcaves | Disturbed a concealed Subdweller 2663 | -10/Subcaves | Core integrity fell below 20% 2830 | -10/Subcaves | Identified exit to Materials 2887 | -10/Subcaves | Entered Recycling 2888 | -8/Recycling | Met a Zionite searching for Scraptown 2923 | -8/Recycling | Scanned before Scraplab entrance 2951 | -8/Recycling | Entered Scraplab 2964 | -8/Recycling | Discovered new exit (range 3) 2967 | -8/Recycling | Entered Scraptown 2967 | -8/Scraptown | System corruption cleaned by C-Scrubber 3477 | -8/Scraptown | Build established: Derelict-Mutant 3670 | -8/Scraptown | Scanned Subdweller tech in exchange for log data 3675 | -8/Scraptown | Learned location of 1 exit from Research 3677 | -8/Scraptown | Learned Research emergency access door positions 3698 | -8/Scraptown | Discovered new exit (range 7) 3832 | -8/Scraptown | Visited CPS Storage 3870 | -8/Scraptown | Visited Comm Corps 3926 | -8/Scraptown | Visited Symbiants 3974 | -8/Scraptown | Visited Bundlers 4137 | -8/Scraptown | Visited Cave Peace 4840 | -8/Scraptown | Visited Observation Area 4930 | -8/Scraptown | Visited IN-MT5's Study 5010 | -8/Scraptown | Visited UFD Registry 5010 | -8/Scraptown | Registered with UFD as "Hammertail" 5067 | -8/Scraptown | Visited DA-N13 Charitable Foundation 5107 | -8/Scraptown | Found DCF Scrap (28 items) 5153 | -8/Scraptown | Visited Sword Containment 5235 | -8/Scraptown | Visited Scrap Suit Storage 5632 | -8/Scraptown | Visited Curators Association 5692 | -8/Scraptown | Visited Derelict Rescue Squad 5752 | -8/Scraptown | Visited Scrapoid Pod Storage 5795 | -8/Scraptown | Visited Modified Component R&D 5921 | -8/Scraptown | Visited Infowarlord's Domain 5966 | -8/Scraptown | Visited LU-1G1's Boring Crew 6014 | -8/Scraptown | Visited Cartography Club 6213 | -8/Scraptown | Found Deep Structural Scanner 6355 | -8/Scraptown | Build established: Mutant 6533 | -8/Scraptown | Discovered new exit (range 5) 6821 | -8/Scraptown | Found Scrap Suit 6980 | -8/Scraptown | Found DRS Beacon 7006 | -8/Scraptown | Found Scrapoid Pod 7088 | -8/Scraptown | Found Exp. Sensor Array 7391 | -8/Scraptown | Found Scrap Suit 7843 | -8/Scraptown | Met Optimus 7843 | -8/Scraptown | Accepted into 0bPrime 7914 | -8/Scraptown | Entered Factory 7914 | -6/Factory | Evolved 8 slots: Utility x8 8015 | -6/Factory | Identified exit to Lower Caves 8015 | -6/Factory | Identified exit to Extension 8207 | -6/Factory | Fabricated Particle Reactor? 8233 | -6/Factory | Build established: Derelict-Mutant 8487 | -6/Factory | Loaded intel: 8 recycling unit locations 8565 | -6/Factory | Crushed by falling debris 8575 | -6/Factory | Learned location of Protoforge (-3) 8640 | -6/Factory | Build established: Hacker-Mutant 9244 | -6/Factory | Core integrity fell below 50% 9257 | -6/Factory | Core integrity fell below 20% 9265 | -6/Factory | Self-destructed Last Messages --------------- 09243_ Penetrated by Slug. 09243_ Slug penetrates H-66 Slayer. 09245_ Companion Sword surprise attacks H-66 Slayer. 09245_ Penetrated by Slug. 09250_ Hacking Suite destroyed. 09252_ Penetrated by Slug. 09252_ R-10 Processor collects Imp. Ion Engine. 09252_ R-10 Processor collects Gauss Rifle. 09253_ Penetrated by Slug. 09255_ Companion Sword surprise attacks H-66 Slayer. 09255_ H-66 Slayer destroyed. 09255_ R-10 Processor collects Flexi-carbon Leg. 09256_ Acquired 31 matter. 09256_ Penetrated by Slug. 09259_ R-10 Processor collects Gauss Rifle. 09260_ Penetrated by Slug. 09261_ K-01 Serf collects debris. 09262_ H-66 Slayer destroyed. Map ----- +----------------------------------------------------+ | ??????????# + / ! """""" #??????????????? | | ??????????# # # = """""" #??????????????? | | ???????????????# #""" """""" #??????????????? | | ???????????????# #"Y] """""" #??????????????? | | ???????????????# #" " * #??????????????? | | ???????????????# # =% #??????????????? | | ???????????????# #####+########??????????????? | | ???????????????# # !! #????????????????????? | | ???????????????# # #????????????????????? | | ???????????????# # | ! #????????????????????? | | ???????????????# # | ! #????????????????????? | | ????????######## # ! #????????????????????? | | ?????? # #????????????????????? | | ??????? # !! #????????????????????? | | ??????? # =""" #?????#??????????????? | | ???????"" # """ #???? #??????????????? | | ???????"" "" #* """ #??? #??????????????? | | ??????""" F" #= * #?? #??????????????? | | ????""""" " ###+###### ##?????????????? | | ??? "" #?????????????? | | ??? #?????????????? | | ?? #?????????????? | | ?? !!! k #?????????????? | | ?? ==%*! ![ #?????????????? | | ?? "" ###m#######/#### #?????????????? | | ???????"" ""?# [@%#?? #?????????????? | | ??????????????# =!#??? #?????????????? | | ??????????????# *!#???? #?????????????? | | ??????????????# #????? +?????????????? | | ??????????????# #?????? #?????????????? | | ??????????????# #?????????????????????? | | ??????????????# #?????????????????????? | | ??????????????# #?????????????????????? | | ??????????????# #?????????????????????? | | ??????????????# #?????????????????????? | | ??????????????# #?????????????????????? | | ??????????????# #?????????????????????? | | ??????????????##############?????????????????????? | | ?????????????????????????????????????????????????? | | ?????????????????????????????????????????????????? | | ?????????????????????????????????????????????????? | | ?????????????????????????????????????????????????? | | ?????????????????????????????????????????????????? | | ????????????????????????????????????????>????????? | | ?????????????????????????????????????????????????? | | ?????????????????????????????????????????????????? | | ?????????????????????????????????????????????????? | | ?????????????????????????????????????????????????? | | ?????????????????????????????????????????????????? | | ?????????????????????????????????????????????????? | +----------------------------------------------------+ Best States ------------- Heat Dissipation 56 Energy Generation 18 Energy Capacity 300 Matter Stores 300 Matter Capacity 300 Sight Range 20 Robot Scan Range 16 Terrain Scan Range 14 Terrain Scan Density 10 Armor Coverage 225 Resistance: KI 20 Resistance: EM 25 Propulsion Shielding 66 Evasion (%) 50 Melee Accuracy 5 Recoil Reduction 2 Offensive Hacking 20 Defensive Hacking 30 Item Schematics ----------------- None Robot Schematics ------------------ None Fabricated ------------ Particle Reactor | x2 | -6/Factory | Preloaded Repaired ---------- Nothing Alien Tech Used ----------------- None Achievements -------------- None Challenges ------------ None Game ------ Seed MomentumWeldingStatue Manual? 0 Play Time 01:05:15 Cumulative 718.3 hours Start 2025.06.08 @ 10:18:31 End 2025.06.08 @ 11:34:37 Sessions 1 Manual Loads 0 Difficulty Rogue Special Mode None Game No. 163 Rogue 163 Adventurer 0 Explorer 0 Win Type - Total 43 Types 12/6/9/2/1/1/8/2/1/1 Lore% 73 Gallery% 85 Achievement% 82 Wizard Run 0 Options --------- Layout 1 ASCII 0 Keyboard 0 Movement Mouse Keybinds 0 Fullscreen 2 Font 24/Smallcaps Map View 50x35 Zoom Use 0% Tactical HUD 1 Map Filters NONE Filters NONE Steam 1 RUN: a81a0a61-0d83-430a-bc74-7f413b86ac86